fUST/lending_fUST_20250607
["ID","MTS","AMOUNT","RATE_DAILY","PERIOD"]
[364841175,1749269439302,-440.0,0.00021642,2]
[364841176,1749269439312,-440.0,0.00021642,2]
[364841177,1749269439321,-440.0,0.00021643,2]
[364841178,1749269439331,-440.0,0.00021695,2]
[364841179,1749269439340,-593.97,0.00021695,2]
[364841180,1749269439350,-440.0,0.00021695,2]
[364841181,1749269439360,-440.0,0.00021789,2]
[364841182,1749269439369,-440.0,0.00021789,2]
[364841183,1749269439378,-440.0,0.00021789,2]
[364841184,1749269439387,-522.77069176,0.00021797,6]
[364841185,1749269439398,-405.0,0.0002184,2]
[364841186,1749269439407,-475.05,0.000219,2]
[364841187,1749269439417,-440.0,0.00021915,2]
[364841188,1749269439426,-440.0,0.00021915,2]
[364841189,1749269439436,-440.0,0.00021915,2]
[364841190,1749269439445,-559.95,0.00021915,2]
[364841191,1749269439455,-440.0,0.00021915,2]
[364841192,1749269439465,-440.0,0.00021915,2]
[364841193,1749269439475,-440.0,0.00021915,2]
[364841194,1749269439485,-440.0,0.00021915,2]
[364841195,1749269439496,-440.0,0.00021915,2]
[364841196,1749269439506,-440.0,0.00021915,2]
[364841197,1749269439515,-440.0,0.00021915,2]
[364841198,1749269439525,-440.0,0.00021916,2]
[364841199,1749269439535,-186.5207383,0.00021916,2]
[364841200,1749269439544,-440.0,0.00021917,2]
[364841201,1749269439553,-400.0,0.00021917,2]
[364841202,1749269439564,-400.0,0.00021917,2]
[364841203,1749269439574,-400.0,0.00021917,2]
[364841204,1749269439586,-400.0,0.00021917,2]
[364841205,1749269439597,-400.0,0.00021917,2]
[364841206,1749269439607,-400.0,0.00021917,2]
[364841207,1749269439618,-400.0,0.00021917,2]
[364841208,1749269439629,-522.77069176,0.00021969,6]
[364841209,1749269439639,-400.0,0.00021969,2]
[364841210,1749269439648,-440.0,0.00021969,2]
[364841211,1749269439658,-593.97,0.00021969,2]
[364841212,1749269439668,-440.0,0.00021969,2]
[364841213,1749269439678,-501.99690183,0.00021991,2]
[364841214,1749269439687,-500.0,0.00021991,2]
[364841215,1749269439697,-500.0,0.00021991,2]
[364841216,1749269439706,-500.0,0.00021991,2]
[364841217,1749269439716,-600.0,0.00021991,2]
[364841218,1749269439725,-500.52893675,0.00021991,2]
[364841219,1749269439734,-643.87136165,0.00021991,2]
[364841220,1749269439744,-505.39581689,0.00021991,2]
[364841221,1749269439753,-502.30865596,0.00021991,2]
[364841222,1749269439765,-501.59591854,0.00021991,2]
[364841223,1749269439774,-500.0,0.00021991,2]
[364841224,1749269439783,-500.0,0.00021991,2]
[364841225,1749269439793,-532.19938591,0.00022023,2]
[364841226,1749269439802,-150.352,0.00022044,2]
[364841227,1749269439813,-440.0,0.00022063,2]
[364841228,1749269439822,-440.0,0.00022063,2]
[364841229,1749269439831,-440.0,0.00022063,2]
[364841230,1749269439843,-500.0,0.00022075,2]
[364841231,1749269439853,-500.0,0.00022075,2]
[364841232,1749269439862,-1228.9,0.000221,7]
[364841233,1749269439872,-522.77069176,0.00022141,6]
[364841234,1749269439883,-749.36,0.0002218,3]
[364841235,1749269439892,-374.68,0.0002218,3]
[364841237,1749269439902,-375.54,0.00022189,3]
[364841238,1749269439911,-440.0,0.00022189,2]
[364841239,1749269439920,-440.0,0.00022189,2]
[364841240,1749269439930,-440.0,0.00022189,2]
[364841241,1749269439940,-559.95,0.00022189,2]
[364841242,1749269439949,-440.0,0.00022189,2]
[364841244,1749269439959,-440.0,0.00022189,2]
[364841245,1749269439968,-440.0,0.00022189,2]
[364841255,1749269440081,-440.0,0.00022189,2]
[364841257,1749269440091,-440.0,0.00022189,2]
[364841259,1749269440102,-440.0,0.00022189,2]
[364841261,1749269440111,-440.0,0.00022189,2]
[364841264,1749269440121,-440.0,0.0002219,2]
[364841266,1749269440130,-440.0,0.00022191,2]
[364841268,1749269440140,-400.0,0.00022243,2]
[364841270,1749269440149,-440.0,0.00022243,2]
[364841272,1749269440160,-593.97,0.00022243,2]
[364841274,1749269440169,-500.0,0.00022244,2]
[364841276,1749269440179,-522.77069176,0.00022314,7]
[364841278,1749269440188,-440.0,0.00022337,2]
[364841280,1749269440198,-440.0,0.00022337,2]
[364841282,1749269440207,-440.0,0.00022337,2]
[364841284,1749269440216,-440.0,0.00022463,2]
[364841286,1749269440225,-440.0,0.00022463,2]
[364841288,1749269440235,-440.0,0.00022463,2]
[364841290,1749269440245,-559.95,0.00022463,2]
[364841292,1749269440255,-290.85613471,0.00022463,2]
[364841294,1749269440264,-440.0,0.00022463,2]
[364841296,1749269440274,-440.0,0.00022463,2]
[364841298,1749269440284,-440.0,0.00022463,2]
[364841300,1749269440293,-440.0,0.00022463,2]
[364841302,1749269440303,-440.0,0.00022463,2]
[364841304,1749269440312,-440.0,0.00022463,2]
[364841306,1749269440322,-440.0,0.00022464,2]
[364841308,1749269440332,-440.0,0.00022465,2]
[364841310,1749269440341,-522.77069176,0.00022486,7]
[364841312,1749269440351,-400.0,0.00022517,2]
[364841314,1749269440359,-440.0,0.00022517,2]
[364841316,1749269440369,-593.97,0.00022517,2]
[364841318,1749269440378,-506.96405041,0.00022539,2]
[364841320,1749269440387,-1000.0,0.00022539,2]
[364841322,1749269440396,-1200.0,0.00022539,2]
[364841324,1749269440406,-506.18120961,0.00022539,2]
[364841326,1749269440415,-440.0,0.00022611,2]
[364841328,1749269440424,-440.0,0.00022611,2]
[364841330,1749269440434,-440.0,0.00022611,2]
[364841332,1749269440443,-522.77069176,0.00022659,7]
[364841334,1749269440452,-440.0,0.00022737,2]
[364841336,1749269440462,-440.0,0.00022737,2]
[364841338,1749269440471,-440.0,0.00022737,2]
[364841340,1749269440481,-559.95,0.00022737,2]
[364841342,1749269440490,-440.0,0.00022737,2]
[364841343,1749269440499,-440.0,0.00022737,2]
[364841345,1749269440509,-440.0,0.00022737,2]
[364841347,1749269440518,-440.0,0.00022737,2]
[364841349,1749269440528,-440.0,0.00022737,2]
[364841351,1749269440538,-440.0,0.00022737,2]
[364841353,1749269440548,-440.0,0.00022738,2]
[364841355,1749269440557,-569.79395835,0.00022739,2]
[364841357,1749269440567,-215.0738,0.00022757,2]
[364841359,1749269440577,-400.0,0.00022791,2]
[364841361,1749269440586,-440.0,0.00022791,2]
[364841363,1749269440596,-593.97,0.00022791,2]
[364841365,1749269440605,-532.19938591,0.00022811,2]
[364841367,1749269440614,-522.77069176,0.00022831,8]
[364841369,1749269440624,-440.0,0.00022885,2]
[364841371,1749269440633,-440.0,0.00022885,2]
[364841373,1749269440643,-494.09072262,0.00022885,2]
[364841375,1749269440653,-167.0,0.00022941,2]
[364841378,1749269440662,-2646.0,0.00023,2]
[364841381,1749269440671,-522.77069176,0.00023003,8]
[364841383,1749269440680,-440.0,0.00023011,2]
[364841385,1749269440690,-440.0,0.00023011,2]
[364841387,1749269440699,-440.0,0.00023011,2]
[364841389,1749269440708,-559.95,0.00023011,2]
[364841391,1749269440718,-440.0,0.00023011,2]
[364841393,1749269440727,-440.0,0.00023011,2]
[364841395,1749269440737,-440.0,0.00023011,2]
[364841397,1749269440746,-440.0,0.00023011,2]
[364841399,1749269440756,-440.0,0.00023011,2]
[364841401,1749269440768,-440.0,0.00023011,2]
[364841403,1749269440779,-440.0,0.00023012,2]
[364841405,1749269440788,-400.0,0.00023065,2]
[364841407,1749269440797,-440.0,0.00023065,2]
[364841409,1749269440807,-593.97,0.00023065,2]
[364841411,1749269440815,-349.0969052,0.00023087,2]
[364841413,1749269440825,-1800.0,0.00023087,2]
[364841415,1749269440835,-608.806564,0.00023088,3]
[364841417,1749269440844,-440.0,0.00023159,2]
[364841419,1749269440854,-440.0,0.00023159,2]
[364841421,1749269440864,-522.77069176,0.00023176,8]
[364841423,1749269440873,-475.05,0.000232,7]
[364841425,1749269440882,-440.0,0.00023285,2]
[364841427,1749269440894,-440.0,0.00023285,2]
[364841429,1749269440904,-440.0,0.00023285,2]
[364841431,1749269440913,-559.95,0.00023285,2]
[364841433,1749269440923,-440.0,0.00023285,2]
[364841435,1749269440933,-440.0,0.00023285,2]
[364841437,1749269440942,-440.0,0.00023285,2]
[364841439,1749269440952,-440.0,0.00023285,2]
[364841441,1749269440965,-509.35950024,0.00023285,2]
[364841443,1749269440975,-440.0,0.00023285,2]
[364841445,1749269440985,-1228.9,0.000233,7]
[364841447,1749269440995,-151.0,0.000233,9]
[364841449,1749269441004,-29736.81895665,0.000233,7]
[364841455,1749269441054,-260.03705514,0.00022345,2]
[364841457,1749269441065,-179.96294486,0.000233,7]
[364841460,1749269441076,-952.03300493,0.000233,7]
[364841462,1749269441088,-500.0,0.000233,7]
[364841464,1749269441099,-1031.83050891,0.000233,7]
[364841471,1749269441175,-49980.7203775,0.000233,7]
[364841472,1749269441187,-4145.37586627,0.000233,7]
[364841473,1749269441198,-6298.79697883,0.000233,7]
[364841730,1749269443766,-420.976198,0.00019323,2]
[364841768,1749269446714,-19.023802,0.00019323,2]
[364841769,1749269446725,-440.0,0.00019323,2]
[364841770,1749269446735,-440.0,0.00019597,2]
[364841771,1749269446745,-406.02931039,0.00019871,2]
[364841772,1749269446757,-26.62068961,0.00019871,2]
[364841773,1749269446771,-176.903693,0.00021368,2]
[364841774,1749269446781,-176.903693,0.00021368,2]
[364841775,1749269446790,-166.70033185,0.000222,69]
[364841776,1749269446800,-176.903693,0.00022421,7]
[364841777,1749269446809,-176.903693,0.00022421,7]
[364841778,1749269446819,-260.03705514,0.00023057,2]
[364841779,1749269446829,-332.17,0.0002329,10]
[364841780,1749269446839,-176.903693,0.000233,7]
[364841781,1749269446849,-176.903693,0.000233,7]
[364841782,1749269446859,-3933.88666011,0.000233,7]
[364841784,1749269457659,151.0,0.00018,2]
[364841787,1749269531895,348.06,0.0001784,2]
[364841789,1749269613053,343.63,0.00017847,2]
[364841790,1749269693059,339.26,0.00017831,2]
[364841791,1749269777285,682.61,0.00017845,2]
[364841793,1749269858388,673.92,0.00017452,2]
[364841794,1749269938938,1129.51,0.00017427,2]
[364841797,1749270007523,10000.0,0.00018,2]
[364841798,1749270020276,3087.15,0.00017478,2]
[364841800,1749270022475,10000.0,0.00018,2]
[364841801,1749270034659,10000.0,0.00018,2]
[364841803,1749270104369,3049.77,0.0001728,2]
[364841804,1749270143509,164.85758346,0.00016658,3]
[364841806,1749270244441,193.242704,0.00013699,2]
[364841810,1749270295613,2550.0,0.000244,120]
[364841812,1749270439103,-300.0,0.00018273,2]
[364841813,1749270439126,-4323.81626787,0.00018274,2]
[364841814,1749270454132,-5762.28958424,0.00018274,2]
[364841826,1749270567139,-201.00758388,0.00018197,2]
[364841851,1749270632787,-1152.28391332,0.00018273,2]
[364841852,1749270632800,-47.71608668,0.00018273,2]
[364841854,1749270632810,-300.0,0.00018273,2]
[364841856,1749270632820,-300.0,0.00018273,2]
[364841858,1749270632830,-300.0,0.00018273,2]
[364841860,1749270632840,-300.0,0.00018273,2]
[364841863,1749270632850,-210.19801771,0.00018274,2]
[364841865,1749270632862,-1010.96841855,0.00018274,2]
[364841867,1749270632874,-582.9768744,0.00018274,2]
[364841868,1749270632886,-13009.75083723,0.00018274,2]
[364841869,1749270632896,-765.3183213,0.00018297,2]
[364841870,1749270632906,-197.313269,0.0001846,2]
[364841871,1749270632916,-212.48994439,0.000189,2]
[364841872,1749270632927,-180.33655697,0.0001913,2]
[364841873,1749270632936,-440.0,0.00019178,2]
[364841874,1749270632946,-440.0,0.00019178,2]
[364841875,1749270632956,-440.0,0.00019178,2]
[364841877,1749270632965,-410.0,0.00019178,2]
[364841878,1749270632975,-458.27026235,0.00019178,2]
[364841880,1749270632985,-440.0,0.00019178,2]
[364841882,1749270632996,-440.0,0.00019178,2]
[364841883,1749270633006,-440.0,0.00019178,2]
[364841885,1749270633015,-436.69554052,0.00019178,2]
[364841886,1749270633026,-619.88,0.00019178,2]
[364841888,1749270633036,-440.0,0.00019178,2]
[364841889,1749270633046,-440.0,0.00019178,2]
[364841890,1749270633057,-440.0,0.00019178,2]
[364841891,1749270633068,-440.0,0.00019178,2]
[364841892,1749270633078,-440.0,0.00019178,2]
[364841893,1749270633088,-618.12,0.00019178,2]
[364841894,1749270633100,-1023.01,0.00019178,2]
[364841895,1749270633116,-918.99,0.00019178,2]
[364841896,1749270633127,-197.0615,0.00019178,2]
[364841897,1749270633137,-282.60476777,0.00019222,2]
[364841898,1749270633148,-2376.20377256,0.00019222,2]
[364841899,1749270633159,-156.587,0.0001931,2]
[364841900,1749270633169,-440.0,0.00019311,2]
[364841901,1749270633179,-440.0,0.00019311,2]
[364841902,1749270633190,-440.0,0.00019311,2]
[364841903,1749270633200,-440.0,0.00019311,2]
[364841904,1749270633211,-430.0,0.00019311,2]
[364841905,1749270633222,-344.28995489,0.00019311,2]
[364841906,1749270633232,-440.0,0.00019311,2]
[364841907,1749270633402,-415.87758504,0.00019311,2]
[364841908,1749270633414,-430.0,0.00019311,2]
[364841909,1749270633424,-219.22,0.00019313,3]
[364841910,1749270633440,-657.68,0.00019313,3]
[364841911,1749270633452,-300.0,0.00019316,2]
[364841912,1749270633462,-500.0,0.00019316,2]
[364841913,1749270633474,-500.0,0.00019316,2]
[364841914,1749270633485,-500.0,0.00019316,2]
[364841915,1749270633496,-500.0,0.00019316,2]
[364841916,1749270633507,-461.90194594,0.00019316,2]
[364841917,1749270633517,-500.0,0.00019316,2]
[364841918,1749270633527,-500.0,0.00019316,2]
[364841919,1749270633538,-500.0,0.00019316,2]
[364841920,1749270633548,-500.0,0.00019316,2]
[364841921,1749270633559,-440.0,0.00019319,2]
[364841922,1749270633569,-440.0,0.00019319,2]
[364841923,1749270633579,-440.0,0.00019319,2]
[364841924,1749270633588,-440.0,0.00019319,2]
[364841925,1749270633598,-1210.34,0.00019319,2]
[364841926,1749270633609,-440.0,0.00019319,2]
[364841927,1749270633619,-440.0,0.00019319,2]
[364841928,1749270633630,-440.0,0.00019319,2]
[364841929,1749270633639,-432.84448559,0.00019319,2]
[364841930,1749270633648,-440.0,0.00019319,2]
[364841931,1749270633658,-440.0,0.00019319,2]
[364841932,1749270633668,-440.0,0.00019319,2]
[364841933,1749270633678,-440.0,0.00019319,2]
[364841934,1749270633688,-440.0,0.00019319,2]
[364841935,1749270633698,-440.0,0.00019319,2]
[364841936,1749270633711,-440.0,0.00019319,2]
[364841937,1749270633721,-440.0,0.00019319,2]
[364841938,1749270633731,-440.0,0.00019319,2]
[364841939,1749270633741,-461.41279938,0.00019319,2]
[364841940,1749270633752,-441.16089819,0.00019319,2]
[364841941,1749270633762,-440.0,0.00019319,2]
[364841942,1749270633772,-440.0,0.00019319,2]
[364841943,1749270633782,-440.0,0.00019319,2]
[364841944,1749270633792,-430.0,0.00019319,2]
[364841945,1749270633802,-438.99273223,0.00019319,2]
[364841946,1749270633812,-440.0,0.00019319,2]
[364841947,1749270633821,-440.0,0.00019319,2]
[364841948,1749270633832,-440.0,0.00019319,2]
[364841949,1749270633842,-440.0,0.00019319,2]
[364841950,1749270633852,-440.0,0.00019319,2]
[364841951,1749270633861,-431.64170506,0.00019319,2]
[364841952,1749270633871,-440.0,0.00019319,2]
[364841953,1749270633882,-412.17394564,0.00019319,2]
[364841954,1749270633892,-440.0,0.00019319,2]
[364841955,1749270633902,-440.0,0.00019319,2]
[364841956,1749270633912,-3482.78,0.00019319,2]
[364841957,1749270633922,-3482.78,0.0001932,2]
[364841958,1749270633931,-268.95739304,0.0001932,2]
[364841959,1749270633941,-440.0,0.00019321,2]
[364841960,1749270633951,-440.0,0.00019321,2]
[364841961,1749270633961,-440.0,0.00019321,2]
[364841962,1749270633971,-440.363916,0.00019321,2]
[364841963,1749270633981,-440.0,0.00019321,2]
[364841964,1749270633991,-430.0,0.00019321,2]
[364841965,1749270634002,-430.0,0.00019321,2]
[364841966,1749270634013,-430.0,0.00019321,2]
[364841967,1749270634023,-444.38551305,0.00019321,2]
[364841968,1749270634034,-430.0,0.00019321,2]
[364841969,1749270634045,-245.58447487,0.00019321,2]
[364841970,1749270634054,-430.0,0.00019321,2]
[364841971,1749270634064,-430.0,0.00019321,2]
[364841972,1749270634074,-500.0,0.00019321,2]
[364841973,1749270634085,-647.68912942,0.00019321,2]
[364841974,1749270634095,-440.0,0.00019321,2]
[364841975,1749270634105,-440.0,0.00019321,2]
[364841976,1749270634116,-440.0,0.00019321,2]
[364841977,1749270634126,-430.0,0.00019321,2]
[364841978,1749270634136,-430.0,0.00019321,2]
[364841979,1749270634146,-430.0,0.00019321,2]
[364841980,1749270634157,-430.0,0.00019321,2]
[364841981,1749270634167,-430.0,0.00019321,2]
[364841982,1749270634178,-430.0,0.00019321,2]
[364841983,1749270634188,-430.0,0.00019321,2]
[364841984,1749270634198,-440.0,0.00019321,2]
[364841985,1749270634208,-440.0,0.00019321,2]
[364841986,1749270634219,-440.0,0.00019321,2]
[364841987,1749270634229,-440.0,0.00019321,2]
[364841988,1749270634239,-440.0,0.00019321,2]
[364841989,1749270634250,-440.0,0.00019321,2]
[364841990,1749270634260,-440.0,0.00019321,2]
[364841991,1749270634270,-440.0,0.00019321,2]
[364841992,1749270634280,-440.0,0.00019321,2]
[364841993,1749270634291,-430.0,0.00019321,2]
[364841994,1749270634301,-440.0,0.00019321,2]
[364841995,1749270634311,-440.0,0.00019321,2]
[364841996,1749270634323,-440.0,0.00019321,2]
[364841997,1749270634333,-440.0,0.00019321,2]
[364841998,1749270634342,-440.0,0.00019321,2]
[364841999,1749270634352,-440.0,0.00019321,2]
[364842000,1749270634363,-440.0,0.00019321,2]
[364842001,1749270634373,-440.0,0.00019321,2]
[364842002,1749270634382,-440.0,0.00019321,2]
[364842003,1749270634395,-440.0,0.00019321,2]
[364842004,1749270634406,-440.0,0.00019321,2]
[364842005,1749270634417,-440.0,0.00019321,2]
[364842006,1749270634427,-440.0,0.00019321,2]
[364842007,1749270634436,-440.0,0.00019321,2]
[364842008,1749270634446,-440.0,0.00019321,2]
[364842009,1749270634457,-440.0,0.00019321,2]
[364842010,1749270634467,-440.0,0.00019321,2]
[364842011,1749270634477,-440.0,0.00019321,2]
[364842012,1749270634487,-440.0,0.00019321,2]
[364842013,1749270634498,-440.0,0.00019321,2]
[364842014,1749270634508,-440.0,0.00019321,2]
[364842015,1749270634517,-440.0,0.00019321,2]
[364842016,1749270634527,-359.46956699,0.00019321,2]
[364842017,1749270634538,-440.0,0.00019321,2]
[364842018,1749270634548,-440.0,0.00019321,2]
[364842019,1749270634557,-440.0,0.00019321,2]
[364842020,1749270634568,-455.27610049,0.00019321,2]
[364842021,1749270634577,-440.0,0.00019321,2]
[364842022,1749270634587,-440.0,0.00019321,2]
[364842023,1749270634608,-504.87557463,0.00019321,2]
[364842024,1749270634620,-440.0,0.00019321,2]
[364842025,1749270634630,-440.0,0.00019321,2]
[364842026,1749270634641,-440.0,0.00019321,2]
[364842027,1749270634651,-440.0,0.00019321,2]
[364842028,1749270634662,-450.0,0.00019321,2]
[364842029,1749270634672,-440.0,0.00019321,2]
[364842030,1749270634682,-440.0,0.00019321,2]
[364842031,1749270634693,-504.15887617,0.00019321,2]
[364842032,1749270634703,-290.13158609,0.00019321,2]
[364842033,1749270634714,-430.0,0.00019321,2]
[364842034,1749270634724,-440.0,0.00019321,2]
[364842035,1749270634734,-465.39677554,0.00019321,2]
[364842036,1749270634745,-440.0,0.00019321,2]
[364842037,1749270634755,-440.0,0.00019321,2]
[364842038,1749270634765,-452.24656411,0.00019321,2]
[364842039,1749270634776,-461.27749013,0.00019321,2]
[364842040,1749270634787,-440.0,0.00019321,2]
[364842041,1749270634797,-440.0,0.00019321,2]
[364842042,1749270634808,-440.0,0.00019321,2]
[364842043,1749270634818,-440.0,0.00019321,2]
[364842044,1749270634829,-440.0,0.00019321,2]
[364842045,1749270634839,-430.0,0.00019321,2]
[364842046,1749270634849,-440.0,0.00019321,2]
[364842047,1749270634859,-440.0,0.00019321,2]
[364842048,1749270634869,-440.0,0.00019321,2]
[364842049,1749270634879,-440.0,0.00019321,2]
[364842050,1749270634889,-440.0,0.00019321,2]
[364842051,1749270634899,-440.0,0.00019321,2]
[364842052,1749270634909,-440.0,0.00019321,2]
[364842053,1749270634919,-440.0,0.00019321,2]
[364842054,1749270634929,-440.0,0.00019321,2]
[364842055,1749270634939,-440.0,0.00019321,2]
[364842056,1749270634949,-440.0,0.00019321,2]
[364842057,1749270634960,-440.0,0.00019321,2]
[364842058,1749270634969,-440.0,0.00019321,2]
[364842059,1749270634979,-440.0,0.00019321,2]
[364842060,1749270634989,-440.0,0.00019321,2]
[364842061,1749270634999,-440.0,0.00019321,2]
[364842062,1749270635009,-440.0,0.00019321,2]
[364842063,1749270635018,-440.0,0.00019321,2]
[364842064,1749270635028,-440.0,0.00019321,2]
[364842065,1749270635039,-297.41345971,0.00019321,2]
[364842066,1749270635050,-440.0,0.00019321,2]
[364842067,1749270635059,-440.0,0.00019321,2]
[364842068,1749270635069,-440.0,0.00019321,2]
[364842069,1749270635079,-433.72323076,0.00019321,2]
[364842070,1749270635090,-440.0,0.00019321,2]
[364842071,1749270635100,-440.0,0.00019321,2]
[364842072,1749270635109,-1149.2,0.00019321,2]
[364842073,1749270635119,-3482.78,0.00019321,2]
[364842074,1749270635128,-3482.78,0.00019321,2]
[364842075,1749270635139,-3482.78,0.00019321,2]
[364842076,1749270635149,-440.0,0.00019321,2]
[364842077,1749270635159,-440.0,0.00019321,2]
[364842078,1749270635169,-586.52596985,0.00019322,2]
[364842079,1749270635179,-440.0,0.00019322,2]
[364842080,1749270635189,-423.47251098,0.00019322,2]
[364842081,1749270635199,-440.0,0.00019322,2]
[364842082,1749270635210,-434.53757923,0.00019322,2]
[364842083,1749270635220,-440.0,0.00019322,2]
[364842084,1749270635230,-440.0,0.00019322,2]
[364842085,1749270635240,-449.00980947,0.00019322,2]
[364842086,1749270635251,-439.36262788,0.00019322,2]
[364842087,1749270635261,-440.0,0.00019322,2]
[364842088,1749270635271,-440.0,0.00019322,2]
[364842089,1749270635281,-445.82414822,0.00019322,2]
[364842090,1749270635291,-440.0,0.00019322,2]
[364842091,1749270635301,-258.51346161,0.00019322,2]
[364842092,1749270635312,-405.30714718,0.00019322,2]
[364842093,1749270635327,-440.0,0.00019322,2]
[364842094,1749270635338,-404.37876923,0.00019322,2]
[364842095,1749270635348,-440.0,0.00019322,2]
[364842096,1749270635358,-453.07188305,0.00019322,2]
[364842097,1749270635368,-440.0,0.00019322,2]
[364842098,1749270635379,-440.0,0.00019322,2]
[364842099,1749270635389,-440.0,0.00019322,2]
[364842100,1749270635401,-254.56665283,0.00019322,2]
[364842101,1749270635412,-440.0,0.00019322,2]
[364842102,1749270635422,-440.0,0.00019322,2]
[364842103,1749270635431,-440.0,0.00019322,2]
[364842104,1749270635441,-433.26727983,0.00019322,2]
[364842105,1749270635451,-440.0,0.00019322,2]
[364842106,1749270635462,-431.24792204,0.00019322,2]
[364842107,1749270635472,-440.0,0.00019322,2]
[364842108,1749270635482,-452.15522675,0.00019322,2]
[364842109,1749270635492,-561.46362119,0.00019322,2]
[364842110,1749270635502,-440.0,0.00019322,2]
[364842111,1749270635512,-430.0,0.00019322,2]
[364842112,1749270635521,-440.0,0.00019322,2]
[364842113,1749270635532,-440.0,0.00019322,2]
[364842114,1749270635541,-440.0,0.00019322,2]
[364842115,1749270635551,-440.0,0.00019322,2]
[364842116,1749270635562,-445.26061261,0.00019322,2]
[364842117,1749270635572,-440.0,0.00019322,2]
[364842118,1749270635582,-433.633589,0.00019322,2]
[364842119,1749270635592,-452.64615683,0.00019322,2]
[364842120,1749270635602,-431.29772155,0.00019322,2]
[364842121,1749270635613,-441.26854018,0.00019322,2]
[364842122,1749270635623,-430.0,0.00019322,2]
[364842123,1749270635633,-430.0,0.00019322,2]
[364842124,1749270635643,-459.35411922,0.00019322,2]
[364842125,1749270635653,-443.03961644,0.00019322,2]
[364842126,1749270635664,-432.51293503,0.00019322,2]
[364842127,1749270635674,-430.0,0.00019322,2]
[364842128,1749270635684,-440.0,0.00019322,2]
[364842129,1749270635694,-440.0,0.00019322,2]
[364842130,1749270635704,-440.0,0.00019322,2]
[364842131,1749270635714,-505.53308604,0.00019322,2]
[364842132,1749270635724,-440.0,0.00019322,2]
[364842133,1749270635733,-440.0,0.00019322,2]
[364842134,1749270635744,-440.0,0.00019322,2]
[364842135,1749270635754,-236.68465088,0.00019322,2]
[364842136,1749270635764,-448.14039492,0.00019322,2]
[364842137,1749270635774,-440.0,0.00019322,2]
[364842138,1749270635784,-440.0,0.00019322,2]
[364842139,1749270635794,-424.99006563,0.00019322,2]
[364842140,1749270635804,-444.03564968,0.00019322,2]
[364842141,1749270635814,-440.0,0.00019322,2]
[364842142,1749270635823,-440.0,0.00019322,2]
[364842143,1749270635834,-440.0,0.00019322,2]
[364842144,1749270635844,-440.0,0.00019322,2]
[364842145,1749270635854,-440.0,0.00019322,2]
[364842146,1749270635864,-441.866122,0.00019322,2]
[364842147,1749270635873,-440.0,0.00019322,2]
[364842148,1749270635883,-440.0,0.00019322,2]
[364842149,1749270635893,-430.0,0.00019322,2]
[364842150,1749270635903,-440.0,0.00019322,2]
[364842151,1749270635914,-403.4073362,0.00019322,2]
[364842152,1749270635923,-430.0,0.00019322,2]
[364842153,1749270635934,-440.0,0.00019322,2]
[364842154,1749270635944,-440.0,0.00019322,2]